[Event "Titled Tuesday Blitz April 4 Late 2023"]
[White "Rios Escobar, Adan"]
[Black "Bryakin, Mikhail"]
[WhiteFideId "3403645"]
[BlackFideId "4165314"]
[WhiteElo "2451"]
[BlackElo "2447"]
[Result "1-0"]
[Round "02"]
[TimeControl "180+2"]
[Date "2023.04.04"]
[WhiteClock "0:00:08"]
[BlackClock "0:01:11"]

1. d4 {[%clk 0:02:55]}  f5 {[%clk 0:02:59]} 2. g3 {[%clk 0:02:53]}  Nf6 {[%clk 0:02:56]} 3. Bg2 {[%clk 0:02:54]}  g6 {[%clk 0:02:57]} 4. Nf3 {[%clk 0:02:54]}  Bg7 {[%clk 0:02:52]} 5. O-O {[%clk 0:02:54]}  O-O {[%clk 0:02:53]} 6. b3 {[%clk 0:02:55]}  d6 {[%clk 0:02:53]} 7. Bb2 {[%clk 0:02:56]}  c6 {[%clk 0:02:53]} 8. Nbd2 {[%clk 0:02:45]}  Nbd7 {[%clk 0:02:52]} 9. Re1 {[%clk 0:02:39]}  d5 {[%clk 0:02:50]} 10. c4 {[%clk 0:02:37]}  Ne4 {[%clk 0:02:51]} 11. Ne5 {[%clk 0:02:32]}  Nxe5 {[%clk 0:02:50]} 12. dxe5 {[%clk 0:02:32]}  e6 {[%clk 0:02:51]} 13. Rc1 {[%clk 0:02:22]}  a5 {[%clk 0:02:50]} 14. f3 {[%clk 0:02:19]}  Nxd2 {[%clk 0:02:43]} 15. Qxd2 {[%clk 0:02:20]}  a4 {[%clk 0:02:41]} 16. Bc3 {[%clk 0:02:01]}  g5 {[%clk 0:02:37]} 17. e4 {[%clk 0:01:54]}  dxe4 {[%clk 0:02:35]} 18. fxe4 {[%clk 0:01:47]}  Qxd2 {[%clk 0:02:34]} 19. Bxd2 {[%clk 0:01:46]}  f4 {[%clk 0:02:35]} 20. gxf4 {[%clk 0:01:38]}  gxf4 {[%clk 0:02:36]} 21. Bb4 {[%clk 0:01:30]}  Rf7 {[%clk 0:02:32]} 22. Bf3 {[%clk 0:00:52]}  Bxe5 {[%clk 0:02:32]} 23. Rcd1 {[%clk 0:00:51]}  Bd7 {[%clk 0:02:32]} 24. Kf2 {[%clk 0:00:43]}  axb3 {[%clk 0:02:31]} 25. Rg1+ {[%clk 0:00:42]}  Kh8 {[%clk 0:02:31]} 26. axb3 {[%clk 0:00:35]}  Ra2+ {[%clk 0:02:32]} 27. Kf1 {[%clk 0:00:35]}  Rxh2 {[%clk 0:02:24]} 28. Bg4 {[%clk 0:00:20]}  b6 {[%clk 0:02:22]} 29. Bxe6 {[%clk 0:00:13]}  Rg7 {[%clk 0:01:31]} 30. Rxd7 {[%clk 0:00:11]}  Rxg1+ {[%clk 0:01:22]} 31. Kxg1 {[%clk 0:00:11]}  Rb2 {[%clk 0:01:23]} 32. Bf8 {[%clk 0:00:07]}  f3 {[%clk 0:01:19]} 33. Rd8 {[%clk 0:00:05]}  Bf6 {[%clk 0:01:13]} 34. Be7+ {[%clk 0:00:06]}  Kg7 {[%clk 0:01:14]} 35. Rg8+ {[%clk 0:00:06]}  Kh6 {[%clk 0:01:14]} 36. Bxf6 {[%clk 0:00:07]}  Re2 {[%clk 0:01:13]} 37. Bf5 {[%clk 0:00:07]}  b5 {[%clk 0:01:10]} 38. Rg3 {[%clk 0:00:07]}  f2+ {[%clk 0:01:09]} 39. Kf1 {[%clk 0:00:07]}  Re1+ {[%clk 0:01:10]} 40. Kxf2 {[%clk 0:00:07]}  Rh1 {[%clk 0:01:10]} 41. Kg2 {[%clk 0:00:07]}  Rh5 {[%clk 0:01:11]} 42. Rh3 {[%clk 0:00:07]}  Rxh3 {[%clk 0:01:11]} 43. Kxh3 {[%clk 0:00:08]} 1-0


[Site "https://www.chess.com"]

[Event "Titled Tuesday Blitz April 4 Late 2023"]
[White "Riff, Vincent"]
[Black "Hajiyev, Kanan"]
[WhiteFideId "617776"]
[BlackFideId "13404148"]
[WhiteElo "2369"]
[BlackElo "2103"]
[Result "1-0"]
[Round "02"]
[TimeControl "180+2"]
[Date "2023.04.04"]
[WhiteClock "0:01:14"]
[BlackClock "0:00:03"]

1. e4 {[%clk 0:03:00]}  c6 {[%clk 0:02:56]} 2. Nf3 {[%clk 0:02:58]}  d5 {[%clk 0:02:57]} 3. Nc3 {[%clk 0:02:58]}  a6 {[%clk 0:02:57]} 4. h3 {[%clk 0:02:43]}  h6 {[%clk 0:02:50]} 5. d4 {[%clk 0:02:42]}  dxe4 {[%clk 0:02:46]} 6. Nxe4 {[%clk 0:02:42]}  Bf5 {[%clk 0:02:47]} 7. Ng3 {[%clk 0:02:40]}  Bh7 {[%clk 0:02:48]} 8. Bc4 {[%clk 0:02:38]}  e6 {[%clk 0:02:48]} 9. O-O {[%clk 0:02:34]}  Nf6 {[%clk 0:02:48]} 10. Ne5 {[%clk 0:02:34]}  c5 {[%clk 0:02:38]} 11. Qe2 {[%clk 0:02:33]}  Nd5 {[%clk 0:01:53]} 12. Re1 {[%clk 0:02:26]}  Bg8 {[%clk 0:01:18]} 13. Nh5 {[%clk 0:01:59]}  cxd4 {[%clk 0:01:13]} 14. Nf4 {[%clk 0:01:41]}  Nxf4 {[%clk 0:00:53]} 15. Bxf4 {[%clk 0:01:42]}  Nc6 {[%clk 0:00:36]} 16. Rad1 {[%clk 0:01:36]}  Bc5 {[%clk 0:00:23]} 17. Nxc6 {[%clk 0:01:31]}  bxc6 {[%clk 0:00:23]} 18. Qe5 {[%clk 0:01:31]}  Bf8 {[%clk 0:00:18]} 19. Rxd4 {[%clk 0:01:30]}  Qf6 {[%clk 0:00:12]} 20. Qe4 {[%clk 0:01:15]}  Rc8 {[%clk 0:00:03]} 21. Bxa6 {[%clk 0:01:14]} 1-0


[Site "https://www.chess.com"]

[Event "Titled Tuesday Blitz April 4 Late 2023"]
[White "Bakalchuk, Johnatan"]
[Black "Qiao, Cindy"]
[WhiteFideId "2810301"]
[BlackFideId "2620243"]
[WhiteElo "2450"]
[BlackElo "1777"]
[Result "1-0"]
[Round "02"]
[TimeControl "180+2"]
[Date "2023.04.04"]
[WhiteClock "0:00:04"]
[BlackClock "0:00:16"]

1. c4 {[%clk 0:03:00]}  e5 {[%clk 0:02:59]} 2. g3 {[%clk 0:03:01]}  Nf6 {[%clk 0:02:58]} 3. Bg2 {[%clk 0:03:00]}  Bc5 {[%clk 0:02:57]} 4. Nc3 {[%clk 0:02:59]}  d6 {[%clk 0:02:57]} 5. Nf3 {[%clk 0:02:57]}  O-O {[%clk 0:02:57]} 6. O-O {[%clk 0:02:57]}  Nc6 {[%clk 0:02:58]} 7. d3 {[%clk 0:02:55]}  Bg4 {[%clk 0:02:57]} 8. Bg5 {[%clk 0:02:50]}  h6 {[%clk 0:02:55]} 9. Bxf6 {[%clk 0:02:50]}  Qxf6 {[%clk 0:02:56]} 10. Nd2 {[%clk 0:02:48]}  Bb6 {[%clk 0:02:49]} 11. Nd5 {[%clk 0:02:43]}  Qd8 {[%clk 0:02:48]} 12. b4 {[%clk 0:02:43]}  Nd4 {[%clk 0:02:40]} 13. Re1 {[%clk 0:02:40]}  c6 {[%clk 0:02:32]} 14. Nxb6 {[%clk 0:02:38]}  axb6 {[%clk 0:02:33]} 15. h3 {[%clk 0:02:38]}  Bh5 {[%clk 0:02:31]} 16. a4 {[%clk 0:02:24]}  Qd7 {[%clk 0:02:14]} 17. b5 {[%clk 0:01:48]}  Rfe8 {[%clk 0:01:56]} 18. Nb3 {[%clk 0:01:42]}  Ne6 {[%clk 0:01:34]} 19. Kh2 {[%clk 0:01:39]}  Nc5 {[%clk 0:01:30]} 20. Nxc5 {[%clk 0:01:31]}  bxc5 {[%clk 0:01:31]} 21. Qb3 {[%clk 0:01:28]}  Bg6 {[%clk 0:01:25]} 22. Reb1 {[%clk 0:01:26]}  e4 {[%clk 0:01:22]} 23. a5 {[%clk 0:01:19]}  d5 {[%clk 0:01:06]} 24. bxc6 {[%clk 0:00:47]}  bxc6 {[%clk 0:01:02]} 25. Qb7 {[%clk 0:00:48]}  Qe6 {[%clk 0:00:59]} 26. Rb6 {[%clk 0:00:47]}  Rec8 {[%clk 0:00:39]} 27. cxd5 {[%clk 0:00:39]}  Qxd5 {[%clk 0:00:40]} 28. Ra4 {[%clk 0:00:31]}  c4 {[%clk 0:00:38]} 29. a6 {[%clk 0:00:25]}  cxd3 {[%clk 0:00:35]} 30. exd3 {[%clk 0:00:26]}  Qxd3 {[%clk 0:00:35]} 31. a7 {[%clk 0:00:26]}  e3 {[%clk 0:00:24]} 32. Qxa8 {[%clk 0:00:17]}  Rxa8 {[%clk 0:00:20]} 33. Rb8+ {[%clk 0:00:18]}  Rxb8 {[%clk 0:00:20]} 34. axb8=Q+ {[%clk 0:00:17]}  Kh7 {[%clk 0:00:21]} 35. fxe3 {[%clk 0:00:12]}  Qxe3 {[%clk 0:00:22]} 36. Qf4 {[%clk 0:00:12]}  Qe6 {[%clk 0:00:21]} 37. Rc4 {[%clk 0:00:11]}  c5 {[%clk 0:00:18]} 38. Rxc5 {[%clk 0:00:08]}  Qe2 {[%clk 0:00:18]} 39. Re5 {[%clk 0:00:08]}  Qa6 {[%clk 0:00:17]} 40. Re3 {[%clk 0:00:05]}  Qb6 {[%clk 0:00:17]} 41. h4 {[%clk 0:00:04]}  Qc5 {[%clk 0:00:17]} 42. Qf2 {[%clk 0:00:04]}  Qd4 {[%clk 0:00:17]} 43. Qe1 {[%clk 0:00:04]}  Qf6 {[%clk 0:00:17]} 44. Be4 {[%clk 0:00:04]}  Bxe4 {[%clk 0:00:16]} 45. Rxe4 {[%clk 0:00:05]}  Qg6 {[%clk 0:00:16]} 46. Qe2 {[%clk 0:00:05]}  f5 {[%clk 0:00:16]} 47. Rf4 {[%clk 0:00:05]}  Qf6 {[%clk 0:00:17]} 48. Qf3 {[%clk 0:00:05]}  Kg6 {[%clk 0:00:17]} 49. Qf2 {[%clk 0:00:05]}  Qe5 {[%clk 0:00:16]} 50. Kh3 {[%clk 0:00:04]}  Kf6 {[%clk 0:00:16]} 51. g4 {[%clk 0:00:03]}  Qc3+ {[%clk 0:00:16]} 52. Rf3 {[%clk 0:00:04]}  Qd4 {[%clk 0:00:16]} 53. Rxf5+ {[%clk 0:00:04]} 1-0


[Site "https://www.chess.com"]

[Event "Titled Tuesday Blitz April 4 Late 2023"]
[White "Klukin, Kirill"]
[Black "Lopez Del Alamo, Antonio"]
[WhiteFideId "24199273"]
[BlackFideId "2227339"]
[WhiteElo "2344"]
[BlackElo "2175"]
[Result "1-0"]
[Round "02"]
[TimeControl "180+2"]
[Date "2023.04.04"]
[WhiteClock "0:01:03"]
[BlackClock "0:00:16"]

1. f4 {[%clk 0:03:00]}  d5 {[%clk 0:02:58]} 2. Nf3 {[%clk 0:03:00]}  Nf6 {[%clk 0:02:55]} 3. g3 {[%clk 0:03:01]}  g6 {[%clk 0:02:54]} 4. Bg2 {[%clk 0:03:01]}  Bg7 {[%clk 0:02:54]} 5. O-O {[%clk 0:03:02]}  O-O {[%clk 0:02:54]} 6. d3 {[%clk 0:03:03]}  c5 {[%clk 0:02:54]} 7. Nc3 {[%clk 0:03:03]}  d4 {[%clk 0:02:54]} 8. Na4 {[%clk 0:03:03]}  Qc7 {[%clk 0:02:51]} 9. c4 {[%clk 0:03:04]}  Nbd7 {[%clk 0:02:41]} 10. a3 {[%clk 0:03:04]}  Rb8 {[%clk 0:02:27]} 11. b4 {[%clk 0:03:02]}  b6 {[%clk 0:02:22]} 12. Rb1 {[%clk 0:03:02]}  Bb7 {[%clk 0:02:09]} 13. Bd2 {[%clk 0:02:45]}  Ng4 {[%clk 0:02:01]} 14. Bh3 {[%clk 0:02:22]}  h5 {[%clk 0:01:50]} 15. Bg2 {[%clk 0:02:19]}  e5 {[%clk 0:01:22]} 16. h3 {[%clk 0:02:15]}  Bxf3 {[%clk 0:01:15]} 17. Bxf3 {[%clk 0:02:11]}  Ne3 {[%clk 0:01:15]} 18. Bxe3 {[%clk 0:02:07]}  dxe3 {[%clk 0:01:16]} 19. Nc3 {[%clk 0:01:36]}  exf4 {[%clk 0:00:59]} 20. Nd5 {[%clk 0:01:36]}  Qd6 {[%clk 0:00:58]} 21. gxf4 {[%clk 0:01:35]}  Nf6 {[%clk 0:00:55]} 22. Qe1 {[%clk 0:01:32]}  Kh7 {[%clk 0:00:34]} 23. Qg3 {[%clk 0:01:29]}  Bh6 {[%clk 0:00:29]} 24. Kh1 {[%clk 0:01:28]}  Nxd5 {[%clk 0:00:26]} 25. Bxd5 {[%clk 0:01:29]}  g5 {[%clk 0:00:25]} 26. Qxe3 {[%clk 0:01:23]}  Rbe8 {[%clk 0:00:20]} 27. Qf3 {[%clk 0:01:23]}  f5 {[%clk 0:00:19]} 28. fxg5 {[%clk 0:01:22]}  Bxg5 {[%clk 0:00:20]} 29. Qxh5+ {[%clk 0:01:22]}  Bh6 {[%clk 0:00:19]} 30. Rg1 {[%clk 0:01:19]}  Re3 {[%clk 0:00:18]} 31. bxc5 {[%clk 0:01:17]}  Qf6 {[%clk 0:00:16]} 32. cxb6 {[%clk 0:01:07]}  axb6 {[%clk 0:00:17]} 33. c5 {[%clk 0:01:06]}  f4 {[%clk 0:00:16]} 34. Rxb6 {[%clk 0:01:03]} 1-0


[Site "https://www.chess.com"]

[Event "Titled Tuesday Blitz April 4 Late 2023"]
[White "Weisz, Bryan"]
[Black "Hansen, Sune Berg"]
[WhiteFideId "30934133"]
[BlackFideId "1400266"]
[WhiteElo "2349"]
[BlackElo "2715"]
[Result "0-1"]
[Round "02"]
[TimeControl "180+2"]
[Date "2023.04.04"]
[WhiteClock "0:00:52"]
[BlackClock "0:01:57"]

1. e4 {[%clk 0:03:00]}  e5 {[%clk 0:02:59]} 2. Nf3 {[%clk 0:02:58]}  Nc6 {[%clk 0:02:58]} 3. Bc4 {[%clk 0:02:58]}  Nf6 {[%clk 0:02:57]} 4. d4 {[%clk 0:02:57]}  exd4 {[%clk 0:02:55]} 5. O-O {[%clk 0:02:57]}  Nxe4 {[%clk 0:02:46]} 6. Re1 {[%clk 0:02:56]}  d5 {[%clk 0:02:47]} 7. Bxd5 {[%clk 0:02:57]}  Qxd5 {[%clk 0:02:47]} 8. Nc3 {[%clk 0:02:57]}  Qh5 {[%clk 0:02:47]} 9. Nxe4 {[%clk 0:02:56]}  Be6 {[%clk 0:02:47]} 10. Bg5 {[%clk 0:02:56]}  Bd6 {[%clk 0:02:47]} 11. Nxd6+ {[%clk 0:02:54]}  cxd6 {[%clk 0:02:47]} 12. Bf4 {[%clk 0:02:55]}  Qd5 {[%clk 0:02:46]} 13. c3 {[%clk 0:02:52]}  O-O {[%clk 0:02:45]} 14. Nxd4 {[%clk 0:02:32]}  Nxd4 {[%clk 0:02:44]} 15. Qxd4 {[%clk 0:02:31]}  Qxd4 {[%clk 0:02:44]} 16. cxd4 {[%clk 0:02:31]}  Rfd8 {[%clk 0:02:44]} 17. Rec1 {[%clk 0:02:27]}  Rd7 {[%clk 0:02:43]} 18. Rc3 {[%clk 0:02:09]}  f6 {[%clk 0:02:42]} 19. b3 {[%clk 0:02:05]}  Bd5 {[%clk 0:02:32]} 20. Rac1 {[%clk 0:02:02]}  g5 {[%clk 0:02:30]} 21. Bg3 {[%clk 0:01:59]}  Re8 {[%clk 0:02:22]} 22. Re3 {[%clk 0:01:43]}  Rxe3 {[%clk 0:02:17]} 23. fxe3 {[%clk 0:01:44]}  Kf7 {[%clk 0:02:17]} 24. Kf2 {[%clk 0:01:38]}  Bc6 {[%clk 0:02:16]} 25. b4 {[%clk 0:01:26]}  a6 {[%clk 0:02:14]} 26. h4 {[%clk 0:01:25]}  h6 {[%clk 0:02:13]} 27. hxg5 {[%clk 0:01:25]}  hxg5 {[%clk 0:02:14]} 28. Rh1 {[%clk 0:01:25]}  Ke6 {[%clk 0:02:13]} 29. Rh6 {[%clk 0:01:23]}  Rc7 {[%clk 0:02:10]} 30. Bh2 {[%clk 0:01:17]}  Be4 {[%clk 0:02:04]} 31. d5+ {[%clk 0:00:59]}  Bxd5 {[%clk 0:02:02]} 32. Rh8 {[%clk 0:00:52]}  Rc2+ {[%clk 0:02:00]} 33. Kg3 {[%clk 0:00:52]}  Rxg2+ {[%clk 0:01:58]} 34. Kh3 {[%clk 0:00:52]}  g4+ {[%clk 0:01:57]} 0-1


[Site "https://www.chess.com"]

[Event "Titled Tuesday Blitz April 4 Late 2023"]
[White "Iliaguev, Nisim"]
[Black "Smith, Garrett L"]
[WhiteFideId "2817276"]
[BlackFideId "2024829"]
[WhiteElo "2241"]
[BlackElo "2327"]
[Result "1-0"]
[Round "02"]
[TimeControl "180+2"]
[Date "2023.04.04"]
[WhiteClock "0:00:15"]
[BlackClock "0:00:09"]

1. d4 {[%clk 0:03:00]}  Nf6 {[%clk 0:02:59]} 2. Nf3 {[%clk 0:02:59]}  g6 {[%clk 0:03:00]} 3. g3 {[%clk 0:02:59]}  c6 {[%clk 0:03:00]} 4. c4 {[%clk 0:03:00]}  d5 {[%clk 0:03:00]} 5. cxd5 {[%clk 0:03:01]}  cxd5 {[%clk 0:03:00]} 6. Bg2 {[%clk 0:03:01]}  Bg7 {[%clk 0:03:00]} 7. O-O {[%clk 0:03:02]}  O-O {[%clk 0:02:58]} 8. Nc3 {[%clk 0:03:03]}  Ne4 {[%clk 0:02:58]} 9. Ne5 {[%clk 0:03:03]}  Nxc3 {[%clk 0:02:52]} 10. bxc3 {[%clk 0:03:04]}  Nc6 {[%clk 0:02:50]} 11. Nxc6 {[%clk 0:03:04]}  bxc6 {[%clk 0:02:49]} 12. a4 {[%clk 0:03:04]}  Ba6 {[%clk 0:02:47]} 13. Ba3 {[%clk 0:03:04]}  Re8 {[%clk 0:02:44]} 14. Re1 {[%clk 0:03:05]}  e5 {[%clk 0:02:41]} 15. e3 {[%clk 0:03:05]}  h5 {[%clk 0:02:32]} 16. h4 {[%clk 0:03:05]}  Rb8 {[%clk 0:02:31]} 17. Bc5 {[%clk 0:03:04]}  Rb7 {[%clk 0:02:25]} 18. Qd2 {[%clk 0:02:59]}  Bc4 {[%clk 0:02:13]} 19. a5 {[%clk 0:02:57]}  a6 {[%clk 0:02:12]} 20. Bb6 {[%clk 0:02:56]}  Qd7 {[%clk 0:02:11]} 21. Reb1 {[%clk 0:02:55]}  f5 {[%clk 0:01:57]} 22. Bf1 {[%clk 0:02:55]}  Bb5 {[%clk 0:01:51]} 23. Qc2 {[%clk 0:02:46]}  Bxf1 {[%clk 0:01:37]} 24. Rxf1 {[%clk 0:02:46]}  Kh7 {[%clk 0:01:32]} 25. Qd3 {[%clk 0:02:45]}  f4 {[%clk 0:01:28]} 26. exf4 {[%clk 0:02:39]}  exf4 {[%clk 0:01:27]} 27. Rfe1 {[%clk 0:02:32]}  Rf8 {[%clk 0:01:10]} 28. Re2 {[%clk 0:02:13]}  Qh3 {[%clk 0:01:06]} 29. Rd2 {[%clk 0:01:35]}  Rbf7 {[%clk 0:01:01]} 30. gxf4 {[%clk 0:01:34]}  Qxh4 {[%clk 0:00:56]} 31. Qg3 {[%clk 0:01:33]}  Rxf4 {[%clk 0:00:53]} 32. Qxh4 {[%clk 0:01:31]}  Rxh4 {[%clk 0:00:54]} 33. Re1 {[%clk 0:01:27]}  Rg4+ {[%clk 0:00:52]} 34. Kf1 {[%clk 0:01:13]}  Rf7 {[%clk 0:00:44]} 35. Re6 {[%clk 0:01:11]}  h4 {[%clk 0:00:41]} 36. Rd3 {[%clk 0:01:12]}  g5 {[%clk 0:00:33]} 37. Bc5 {[%clk 0:01:04]}  Rgf4 {[%clk 0:00:33]} 38. Re2 {[%clk 0:01:03]}  g4 {[%clk 0:00:32]} 39. Bd6 {[%clk 0:01:03]}  Rf3 {[%clk 0:00:31]} 40. Rxf3 {[%clk 0:01:01]}  Rxf3 {[%clk 0:00:31]} 41. Re7 {[%clk 0:01:01]}  Kg6 {[%clk 0:00:27]} 42. Re6+ {[%clk 0:00:42]}  Kf5 {[%clk 0:00:26]} 43. Re7 {[%clk 0:00:36]}  Kf6 {[%clk 0:00:27]} 44. Rc7 {[%clk 0:00:35]}  g3 {[%clk 0:00:26]} 45. Rxc6 {[%clk 0:00:30]}  Rxf2+ {[%clk 0:00:27]} 46. Kg1 {[%clk 0:00:30]}  Kf5 {[%clk 0:00:27]} 47. Rc7 {[%clk 0:00:27]}  Bf6 {[%clk 0:00:23]} 48. Rf7 {[%clk 0:00:27]}  Kg4 {[%clk 0:00:20]} 49. Rf8 {[%clk 0:00:22]}  h3 {[%clk 0:00:12]} 50. Rg8+ {[%clk 0:00:20]}  Bg5 {[%clk 0:00:12]} 51. Bxg3 {[%clk 0:00:20]}  Rg2+ {[%clk 0:00:12]} 52. Kh1 {[%clk 0:00:21]}  Rxg3 {[%clk 0:00:13]} 53. Rg6 {[%clk 0:00:21]}  Kf4 {[%clk 0:00:13]} 54. Rxa6 {[%clk 0:00:21]}  Bh4 {[%clk 0:00:13]} 55. Rh6 {[%clk 0:00:21]}  Kg4 {[%clk 0:00:13]} 56. a6 {[%clk 0:00:19]}  Rxc3 {[%clk 0:00:14]} 57. Rg6+ {[%clk 0:00:16]}  Kf3 {[%clk 0:00:13]} 58. Kh2 {[%clk 0:00:15]}  Bf2 {[%clk 0:00:09]} 59. Kxh3 {[%clk 0:00:15]}  Bxd4 {[%clk 0:00:09]} 60. Rg3+ {[%clk 0:00:15]} 1-0


[Site "https://www.chess.com"]

[Event "Titled Tuesday Blitz April 4 Late 2023"]
[White "Arun, Siddharth"]
[Black "Nazari, Arad"]
[WhiteFideId "2079178"]
[BlackFideId "12577324"]
[WhiteElo "2319"]
[BlackElo "2242"]
[Result "0-1"]
[Round "02"]
[TimeControl "180+2"]
[Date "2023.04.04"]
[WhiteClock "0:00:24"]
[BlackClock "0:01:16"]

1. d4 {[%clk 0:03:00]}  Nf6 {[%clk 0:02:59]} 2. Nc3 {[%clk 0:03:00]}  d5 {[%clk 0:02:57]} 3. Bf4 {[%clk 0:03:00]}  g6 {[%clk 0:02:54]} 4. e3 {[%clk 0:03:00]}  Bg7 {[%clk 0:02:54]} 5. Nb5 {[%clk 0:03:00]}  Na6 {[%clk 0:02:54]} 6. h3 {[%clk 0:02:59]}  O-O {[%clk 0:02:54]} 7. Nf3 {[%clk 0:02:59]}  c6 {[%clk 0:02:50]} 8. Nc3 {[%clk 0:02:59]}  Nc7 {[%clk 0:02:50]} 9. Be2 {[%clk 0:02:59]}  b5 {[%clk 0:02:37]} 10. a3 {[%clk 0:02:56]}  a5 {[%clk 0:02:37]} 11. O-O {[%clk 0:02:53]}  Ba6 {[%clk 0:02:37]} 12. a4 {[%clk 0:02:44]}  b4 {[%clk 0:02:34]} 13. Na2 {[%clk 0:02:45]}  Ne6 {[%clk 0:02:25]} 14. Be5 {[%clk 0:02:43]}  c5 {[%clk 0:02:22]} 15. dxc5 {[%clk 0:02:26]}  Nxc5 {[%clk 0:02:20]} 16. b3 {[%clk 0:02:19]}  Nfe4 {[%clk 0:02:13]} 17. Bxg7 {[%clk 0:02:18]}  Kxg7 {[%clk 0:02:14]} 18. Qd4+ {[%clk 0:02:14]}  f6 {[%clk 0:02:14]} 19. Bxa6 {[%clk 0:02:11]}  Rxa6 {[%clk 0:02:15]} 20. Ne1 {[%clk 0:01:54]}  e5 {[%clk 0:02:13]} 21. Qd1 {[%clk 0:01:54]}  Rd6 {[%clk 0:02:01]} 22. Nd3 {[%clk 0:01:54]}  d4 {[%clk 0:01:58]} 23. exd4 {[%clk 0:01:40]}  Rxd4 {[%clk 0:01:57]} 24. Nxc5 {[%clk 0:01:40]}  Nxc5 {[%clk 0:01:50]} 25. Qe2 {[%clk 0:01:37]}  Qd5 {[%clk 0:01:43]} 26. Qb5 {[%clk 0:01:22]}  Ne4 {[%clk 0:01:38]} 27. Qxd5 {[%clk 0:01:18]}  Rxd5 {[%clk 0:01:38]} 28. Rfd1 {[%clk 0:01:18]}  Rfd8 {[%clk 0:01:38]} 29. Rxd5 {[%clk 0:01:16]}  Rxd5 {[%clk 0:01:39]} 30. f3 {[%clk 0:01:13]}  Nc5 {[%clk 0:01:34]} 31. Rf1 {[%clk 0:01:00]}  f5 {[%clk 0:01:27]} 32. Nc1 {[%clk 0:00:58]}  Kf6 {[%clk 0:01:23]} 33. g3 {[%clk 0:00:50]}  e4 {[%clk 0:01:20]} 34. fxe4 {[%clk 0:00:46]}  Nxe4 {[%clk 0:01:21]} 35. Nd3 {[%clk 0:00:41]}  Nxg3 {[%clk 0:01:18]} 36. Re1 {[%clk 0:00:40]}  Ne4 {[%clk 0:01:19]} 37. Kg2 {[%clk 0:00:39]}  g5 {[%clk 0:01:18]} 38. Kf3 {[%clk 0:00:38]}  h6 {[%clk 0:01:18]} 39. h4 {[%clk 0:00:32]}  Rd8 {[%clk 0:01:16]} 40. hxg5+ {[%clk 0:00:31]}  hxg5 {[%clk 0:01:17]} 41. Rh1 {[%clk 0:00:32]}  Rc8 {[%clk 0:01:16]} 42. Rh6+ {[%clk 0:00:31]}  Kg7 {[%clk 0:01:16]} 43. Ra6 {[%clk 0:00:26]}  Rxc2 {[%clk 0:01:17]} 44. Rxa5 {[%clk 0:00:26]}  Nd2+ {[%clk 0:01:15]} 45. Ke3 {[%clk 0:00:25]}  f4+ {[%clk 0:01:16]} 46. Kd4 {[%clk 0:00:24]}  Nxb3+ {[%clk 0:01:16]} 0-1


[Site "https://www.chess.com"]

[Event "Titled Tuesday Blitz April 4 Late 2023"]
[White "feuervogel1000000"]
[Black "Mindlin, Alon"]
[BlackFideId "2800071"]
[WhiteElo "2257"]
[BlackElo "2430"]
[Result "0-1"]
[Round "02"]
[TimeControl "180+2"]
[Date "2023.04.04"]
[WhiteClock "0:00:01"]
[BlackClock "0:00:10"]

1. e4 {[%clk 0:03:00]}  e5 {[%clk 0:02:57]} 2. Nf3 {[%clk 0:03:00]}  Nc6 {[%clk 0:02:57]} 3. Bb5 {[%clk 0:03:00]}  a6 {[%clk 0:02:57]} 4. Ba4 {[%clk 0:02:59]}  Nf6 {[%clk 0:02:58]} 5. O-O {[%clk 0:02:59]}  Be7 {[%clk 0:02:55]} 6. Re1 {[%clk 0:02:58]}  b5 {[%clk 0:02:55]} 7. Bb3 {[%clk 0:02:57]}  d6 {[%clk 0:02:56]} 8. c3 {[%clk 0:02:56]}  O-O {[%clk 0:02:56]} 9. d4 {[%clk 0:02:55]}  Bg4 {[%clk 0:02:55]} 10. Be3 {[%clk 0:02:55]}  Bh5 {[%clk 0:02:53]} 11. Nbd2 {[%clk 0:02:53]}  Ng4 {[%clk 0:02:50]} 12. Bd5 {[%clk 0:02:42]}  Nxe3 {[%clk 0:02:50]} 13. Rxe3 {[%clk 0:02:33]}  Qe8 {[%clk 0:02:49]} 14. Bxc6 {[%clk 0:02:29]}  Qxc6 {[%clk 0:02:49]} 15. dxe5 {[%clk 0:02:30]}  Bg5 {[%clk 0:02:34]} 16. Rd3 {[%clk 0:02:10]}  Bxd2 {[%clk 0:02:03]} 17. Qxd2 {[%clk 0:02:08]}  Qxe4 {[%clk 0:01:44]} 18. Re1 {[%clk 0:02:00]}  Qb7 {[%clk 0:01:36]} 19. exd6 {[%clk 0:01:59]}  cxd6 {[%clk 0:01:37]} 20. Nd4 {[%clk 0:01:54]}  Rfe8 {[%clk 0:01:28]} 21. Rde3 {[%clk 0:01:53]}  Rxe3 {[%clk 0:01:26]} 22. Qxe3 {[%clk 0:01:54]}  Qd7 {[%clk 0:01:24]} 23. Nf5 {[%clk 0:01:49]}  h6 {[%clk 0:01:15]} 24. Qe4 {[%clk 0:01:23]}  Rd8 {[%clk 0:01:08]} 25. Qh4 {[%clk 0:01:16]}  Bg6 {[%clk 0:01:03]} 26. Ne7+ {[%clk 0:01:14]}  Kh7 {[%clk 0:01:03]} 27. Nxg6 {[%clk 0:01:00]}  fxg6 {[%clk 0:01:04]} 28. h3 {[%clk 0:00:53]}  Re8 {[%clk 0:00:58]} 29. Rxe8 {[%clk 0:00:52]}  Qxe8 {[%clk 0:00:59]} 30. Kf1 {[%clk 0:00:52]}  Qe6 {[%clk 0:00:54]} 31. b3 {[%clk 0:00:48]}  Qd5 {[%clk 0:00:50]} 32. Qd4 {[%clk 0:00:47]}  Qf5 {[%clk 0:00:46]} 33. Qd2 {[%clk 0:00:42]}  d5 {[%clk 0:00:44]} 34. f3 {[%clk 0:00:40]}  a5 {[%clk 0:00:39]} 35. Kf2 {[%clk 0:00:39]}  Qb1 {[%clk 0:00:32]} 36. Ke3 {[%clk 0:00:27]}  Qg1+ {[%clk 0:00:19]} 37. Qf2 {[%clk 0:00:26]}  Qd1 {[%clk 0:00:19]} 38. Qd2 {[%clk 0:00:23]}  Qb1 {[%clk 0:00:18]} 39. Kd4 {[%clk 0:00:22]}  Qf5 {[%clk 0:00:18]} 40. Kc5 {[%clk 0:00:21]}  d4+ {[%clk 0:00:19]} 41. Kxd4 {[%clk 0:00:20]}  Qd7+ {[%clk 0:00:18]} 42. Ke3 {[%clk 0:00:21]}  Qe7+ {[%clk 0:00:18]} 43. Kf2 {[%clk 0:00:21]}  b4 {[%clk 0:00:19]} 44. c4 {[%clk 0:00:20]}  Qe5 {[%clk 0:00:18]} 45. g3 {[%clk 0:00:16]}  h5 {[%clk 0:00:18]} 46. f4 {[%clk 0:00:14]}  Qf5 {[%clk 0:00:18]} 47. Kg2 {[%clk 0:00:12]}  Qe4+ {[%clk 0:00:18]} 48. Kh2 {[%clk 0:00:12]}  a4 {[%clk 0:00:19]} 49. Kg1 {[%clk 0:00:06]}  a3 {[%clk 0:00:19]} 50. Kf2 {[%clk 0:00:05]}  Qh1 {[%clk 0:00:19]} 51. Ke3 {[%clk 0:00:03]}  Qxh3 {[%clk 0:00:19]} 52. Kf3 {[%clk 0:00:03]}  Qh1+ {[%clk 0:00:18]} 53. Ke3 {[%clk 0:00:03]}  Qg1+ {[%clk 0:00:19]} 54. Qf2 {[%clk 0:00:04]}  Qc1+ {[%clk 0:00:18]} 55. Qd2 {[%clk 0:00:04]}  Qb2 {[%clk 0:00:18]} 56. Kd3 {[%clk 0:00:03]}  Qb1+ {[%clk 0:00:18]} 57. Ke3 {[%clk 0:00:04]}  Qf5 {[%clk 0:00:16]} 58. Qxb4 {[%clk 0:00:03]}  Qh3 {[%clk 0:00:16]} 59. Qe1 {[%clk 0:00:03]}  Qg2 {[%clk 0:00:16]} 60. Qf2 {[%clk 0:00:03]}  Qh1 {[%clk 0:00:16]} 61. Qe2 {[%clk 0:00:02]}  Qc1+ {[%clk 0:00:17]} 62. Qd2 {[%clk 0:00:02]}  Qb1 {[%clk 0:00:17]} 63. Qc3 {[%clk 0:00:02]}  Qxa2 {[%clk 0:00:17]} 64. b4 {[%clk 0:00:03]}  Qb2 {[%clk 0:00:11]} 65. Kd3 {[%clk 0:00:02]}  Qb1+ {[%clk 0:00:11]} 66. Qc2 {[%clk 0:00:02]}  a2 {[%clk 0:00:11]} 67. Kc3 {[%clk 0:00:01]}  a1=Q+ {[%clk 0:00:10]} 0-1


[Site "https://www.chess.com"]